bitfinex/quotes_SOLUSD_20230116
["timestamp","ask_amount","ask_price","bid_price","bid_amount"]
[1673892816159,20.0,23.238,23.21,87.46242741]
[1673892816470,20.0,23.238,23.211,53.44476733]
[1673892816791,20.0,23.238,23.213,20.0]
[1673892816971,20.0,23.238,23.215,20.0]
[1673892817184,20.0,23.238,23.216,20.0]
[1673892817404,20.0,23.238,23.218,20.0]
[1673892817618,20.0,23.238,23.22,20.0]
[1673892817826,20.0,23.238,23.221,17.0]
[1673892818043,40.0,23.242,23.222,20.0]
[1673892818360,40.0,23.242,23.223,17.0]
[1673892818674,20.0,23.242,23.223,17.0]
[1673892819616,40.0,23.242,23.223,17.0]
[1673892821210,32.29,23.241,23.218,115.5513]
[1673892821419,41.96,23.24,23.207,4.9830707]
[1673892821617,20.0,23.238,23.206,20.0]
[1673892821943,20.0,23.236,23.206,20.0]
[1673892822139,37.0,23.235,23.206,20.0]
[1673892822353,20.0,23.234,23.208,20.0]
[1673892822555,20.0,23.232,23.208,20.0]
[1673892822771,20.0,23.231,23.208,20.0]
[1673892822979,20.0,23.229,23.208,20.0]
[1673892823205,20.0,23.228,23.2,32.34]
[1673892823396,69.3,23.228,23.2,32.34]
[1673892823611,20.0,23.227,23.2,32.34]
[1673892823827,17.0,23.226,23.206,20.0]
[1673892824044,20.0,23.225,23.206,20.0]
[1673892824238,17.0,23.224,23.206,20.0]
[1673892825203,17.0,23.224,23.207,32.33]
[1673892825398,17.0,23.226,23.206,20.0]
[1673892826038,17.0,23.226,23.208,20.0]
[1673892826235,17.0,23.226,23.204,32.34]
[1673892826453,20.0,23.225,23.205,20.0]
[1673892826650,17.0,23.224,23.205,20.0]
[1673892829089,17.0,23.224,23.206,32.34]
[1673892829296,17.0,23.224,23.205,20.0]
[1673892829922,17.0,23.224,23.206,20.0]
[1673892830338,20.0,23.228,23.207,17.0]
[1673892830549,20.0,23.228,23.208,20.0]
[1673892830778,52.3,23.228,23.208,52.33]
[1673892830964,20.0,23.227,23.208,20.0]
[1673892831492,20.0,23.228,23.208,20.0]
[1673892831828,20.0,23.229,23.21,20.0]
[1673892832020,20.0,23.228,23.212,20.0]
[1673892833298,20.0,23.23,23.213,17.0]
[1673892834036,40.0,23.23,23.213,17.0]
[1673892834664,20.0,23.23,23.213,17.0]
[1673892834849,31.40427158,23.235,23.214,20.0]
[1673892835065,32.29,23.236,23.215,17.0]
[1673892835279,32.29,23.236,23.216,40.0]
[1673892835619,32.29,23.236,23.218,20.0]
[1673892835800,32.29,23.237,23.218,20.0]
[1673892836011,32.29,23.237,23.219,17.0]
[1673892836426,32.29,23.238,23.219,17.0]
[1673892836659,32.29,23.241,23.219,17.0]
[1673892836870,20.0,23.239,23.219,17.0]
[1673892837297,20.0,23.238,23.22,20.0]
[1673892837494,20.0,23.238,23.221,17.0]
[1673892838966,20.0,23.238,23.193,20.0]
[1673892839162,20.0,23.236,23.205,109.6528]
[1673892839375,37.0,23.235,23.205,109.6528]
[1673892840340,151.1111,23.231,23.206,52.34]
[1673892840652,20.0,23.23,23.206,52.34]
[1673892840849,17.0,23.229,23.208,20.0]
[1673892841064,40.0,23.228,23.21,20.0]
[1673892841388,20.0,23.228,23.211,17.0]
[1673892842311,114.1111,23.231,23.212,20.0]
[1673892842523,32.29,23.235,23.213,37.0]
[1673892842744,52.29,23.239,23.213,69.33]
[1673892843154,52.29,23.239,23.214,20.0]
[1673892843368,52.29,23.239,23.216,20.0]
[1673892843590,52.29,23.239,23.217,17.0]
[1673892844847,20.0,23.236,23.215,32.32]
[1673892845056,17.0,23.235,23.216,20.0]
[1673892845260,20.0,23.234,23.206,20.0]
[1673892845483,41.96,23.233,23.194,20.0]
[1673892845819,4.96,23.232,23.194,20.0]
[1673892845991,55.88877744,23.232,23.195,32.35]
[1673892846202,227.5116139,23.231,23.196,20.0]
[1673892846634,20.0,23.23,23.198,20.0]
[1673892846839,37.0,23.229,23.198,20.0]
[1673892847054,20.0,23.228,23.199,32.35]
[1673892847249,20.0,23.226,23.201,20.0]
[1673892847467,17.0,23.225,23.202,37.0]
[1673892847687,49.31,23.225,23.202,37.0]
[1673892847894,49.31,23.225,23.203,20.0]
[1673892848223,49.31,23.225,23.204,37.0]
[1673892848419,20.0,23.224,23.204,37.0]
[1673892848631,17.0,23.223,23.204,155.3766]
[1673892848951,17.0,23.223,23.205,20.0]
[1673892849162,17.0,23.223,23.207,20.0]
[1673892849800,17.0,23.223,23.206,20.0]
[1673892850429,17.0,23.224,23.206,20.0]
[1673892850848,17.0,23.224,23.207,20.0]
[1673892851054,17.0,23.225,23.207,20.0]
[1673892852550,32.31,23.227,23.209,20.0]
[1673892852748,52.3,23.228,23.209,20.0]
[1673892853396,52.3,23.228,23.207,20.0]
[1673892853894,20.0,23.226,23.207,20.0]
[1673892854101,17.0,23.225,23.206,40.0]
[1673892854314,20.0,23.224,23.206,40.0]
[1673892854532,17.0,23.223,23.206,20.0]
[1673892855806,17.0,23.223,23.207,20.0]
[1673892856005,49.31,23.225,23.207,20.0]
[1673892856203,17.0,23.225,23.207,20.0]
[1673892856415,17.0,23.225,23.208,17.0]
[1673892856625,17.0,23.226,23.207,20.0]
[1673892856841,20.0,23.225,23.207,20.0]
[1673892857087,17.0,23.224,23.207,20.0]
[1673892860328,17.0,23.224,23.206,20.0]
[1673892861283,17.0,23.224,23.206,40.0]
[1673892861801,17.0,23.224,23.206,20.0]
[1673892862524,17.0,23.224,23.207,20.0]
[1673892863261,17.0,23.224,23.206,40.0]
[1673892863895,17.0,23.224,23.206,20.0]
[1673892864115,17.0,23.224,23.179,51.0327]
[1673892864116,52.5868139,23.223,23.179,51.0327]
[1673892864313,17.0,23.222,23.194,20.0]
[1673892864642,4.96,23.221,23.186,108.9934]
[1673892864836,17.0,23.22,23.187,32.36]
[1673892865050,20.0,23.219,23.187,32.36]
[1673892865255,17.0,23.218,23.187,32.36]
[1673892865477,69.32,23.218,23.187,32.36]
[1673892865684,40.0,23.217,23.187,32.36]
[1673892865899,21.96,23.216,23.186,108.9934]
[1673892866113,20.0,23.214,23.186,108.9934]
[1673892866319,41.96,23.213,23.186,108.9934]
[1673892866535,24.96,23.212,23.186,108.9934]
[1673892866726,20.0,23.21,23.186,108.9934]
[1673892866931,37.0,23.209,23.18,32.37]
[1673892867148,20.0,23.207,23.179,113.3958]
[1673892867360,37.0,23.206,23.179,113.3958]
[1673892867582,20.0,23.205,23.179,113.3958]
[1673892867799,37.0,23.204,23.179,113.3958]
[1673892867993,20.0,23.203,23.179,113.3958]
[1673892868199,20.0,23.201,23.179,113.3958]
[1673892868516,37.0,23.2,23.179,113.3958]
[1673892868734,52.34,23.2,23.18,20.0]
[1673892868951,20.0,23.2,23.179,113.3958]
[1673892869154,20.0,23.199,23.179,113.3958]
[1673892869369,20.0,23.198,23.179,113.3958]
[1673892869575,20.0,23.197,23.179,113.3958]
[1673892869901,17.0,23.196,23.179,113.3958]
[1673892870113,17.0,23.196,23.174,32.38]
[1673892870300,20.0,23.195,23.172,32.38]
[1673892870504,17.0,23.194,23.174,20.0]
[1673892871354,17.0,23.194,23.175,17.0]
[1673892871566,17.0,23.194,23.176,20.0]
[1673892871782,17.0,23.194,23.177,17.0]
[1673892871975,32.35,23.197,23.177,17.0]
[1673892872210,20.0,23.198,23.178,20.0]
[1673892872545,20.0,23.196,23.178,32.37]
[1673892872743,20.0,23.196,23.179,17.0]
[1673892872953,20.0,23.196,23.174,20.0]
[1673892872954,20.0,23.196,23.177,17.0]
[1673892873169,20.0,23.196,23.176,17.0]
[1673892873785,20.0,23.196,23.175,17.0]
[1673892873996,20.0,23.196,23.174,17.0]
[1673892874327,17.0,23.195,23.173,20.0]
[1673892874638,20.0,23.194,23.173,20.0]
[1673892874856,20.0,23.194,23.172,20.0]
[1673892875049,20.0,23.194,23.173,20.0]
[1673892876545,17.0,23.193,23.173,20.0]
[1673892876728,20.0,23.192,23.174,17.0]
[1673892877990,17.0,23.191,23.172,20.0]
[1673892879595,20.0,23.19,23.172,20.0]
[1673892879787,20.0,23.19,23.171,20.0]
[1673892879788,17.0,23.189,23.171,20.0]
[1673892880720,17.0,23.189,23.172,17.0]
[1673892880933,17.0,23.189,23.173,20.0]
[1673892881140,20.0,23.19,23.173,20.0]
[1673892881470,17.0,23.189,23.171,17.0]
[1673892881681,20.0,23.187,23.17,17.0]
[1673892882311,20.0,23.187,23.168,109.1926]
[1673892883995,20.0,23.185,23.168,109.1926]
[1673892884415,20.0,23.183,23.168,109.1926]
[1673892884944,20.0,23.181,23.168,109.1926]
[1673892887246,17.0,23.18,23.168,109.1926]
[1673892887969,20.0,23.181,23.168,109.1926]
[1673892888410,20.0,23.184,23.168,109.1926]
[1673892888616,20.0,23.184,23.169,17.0]
[1673892889018,20.0,23.188,23.169,17.0]
[1673892889540,20.0,23.189,23.17,32.39]
[1673892889756,20.0,23.189,23.172,20.0]
[1673892889988,20.0,23.189,23.173,17.0]
[1673892890714,20.0,23.189,23.172,20.0]
[1673892890955,20.0,23.189,23.173,17.0]
[1673892891674,20.0,23.194,23.174,20.0]
[1673892891863,20.0,23.194,23.176,20.0]
[1673892892070,20.0,23.194,23.177,17.0]
[1673892892290,20.0,23.194,23.175,32.38]
[1673892892502,41.46196354,23.194,23.174,20.0]
[1673892892699,41.46196354,23.194,23.175,17.0]
[1673892892911,21.46196354,23.193,23.175,17.0]
[1673892893137,20.0,23.191,23.175,17.0]
[1673892894062,20.0,23.191,23.174,20.0]
[1673892894280,20.0,23.191,23.172,20.0]
[1673892894489,20.0,23.191,23.171,20.0]
[1673892895035,18.74539678,23.191,23.171,20.0]
[1673892895559,18.74539678,23.191,23.172,17.0]
[1673892895753,52.35,23.194,23.173,40.0]
[1673892895958,20.0,23.192,23.174,17.0]
[1673892897556,135.7332,23.192,23.174,17.0]
[1673892898813,20.0,23.19,23.17,32.39]
[1673892899137,20.0,23.19,23.167,32.39]
[1673892899138,37.0,23.189,23.167,32.39]
[1673892899352,69.36,23.189,23.169,17.0]
[1673892899560,20.0,23.188,23.169,17.0]
[1673892899782,20.0,23.186,23.169,17.0]
[1673892900178,20.0,23.186,23.163,32.4]
[1673892900391,49.36,23.185,23.163,32.4]
[1673892900718,41.46196354,23.184,23.161,20.0]
[1673892900913,17.0,23.183,23.162,119.1243]
[1673892901118,49.37,23.183,23.162,119.1243]
[1673892901553,20.0,23.182,23.162,119.1243]
[1673892901754,17.0,23.181,23.162,119.1243]
[1673892902095,20.0,23.18,23.162,119.1243]
[1673892902284,20.0,23.182,23.162,119.1243]
[1673892902480,20.0,23.182,23.167,17.0]
[1673892902906,20.0,23.182,23.162,151.5243]
[1673892903445,20.0,23.182,23.163,20.0]
[1673892904603,20.0,23.189,23.167,20.0]
[1673892904821,20.0,23.189,23.168,17.0]
[1673892905017,20.0,23.189,23.168,49.39]
[1673892905239,20.0,23.188,23.168,49.39]
[1673892905762,20.0,23.188,23.169,20.0]
[1673892905957,20.0,23.188,23.17,17.0]
[1673892906163,20.0,23.188,23.171,20.0]
[1673892906496,161.6979,23.197,23.172,17.0]
[1673892906683,20.0,23.197,23.173,20.0]
[1673892906893,20.0,23.197,23.174,17.0]
[1673892907107,21.46196354,23.196,23.174,125.1061]
[1673892907336,20.0,23.195,23.175,20.0]
[1673892907653,20.0,23.195,23.176,17.0]
[1673892907861,41.46196354,23.195,23.176,17.0]
[1673892908060,17.0,23.194,23.176,17.0]
[1673892908266,20.0,23.193,23.176,17.0]
[1673892908797,52.34,23.203,23.177,32.38]
[1673892909011,115.7332,23.205,23.178,37.0]
[1673892909329,4.96,23.204,23.179,125.5962]
[1673892909543,4.96,23.204,23.179,176.09862741]
[1673892909763,4.96,23.204,23.18,103.72625591]
[1673892909980,4.96,23.204,23.181,17.0]
[1673892910162,4.96,23.204,23.182,40.0]
[1673892910376,4.96,23.204,23.183,17.0]
[1673892910587,4.96,23.204,23.185,20.0]
[1673892910795,20.0,23.216,23.186,17.0]
[1673892911018,21.96,23.215,23.186,17.0]
[1673892911237,20.0,23.214,23.187,18.13242741]
[1673892911439,20.0,23.214,23.189,20.0]
[1673892911657,20.0,23.214,23.19,17.0]
[1673892912061,20.0,23.214,23.191,20.0]
[1673892912276,20.0,23.214,23.192,17.0]
[1673892912485,52.32,23.217,23.192,17.0]
[1673892912690,52.32,23.217,23.193,40.0]
[1673892912901,32.32,23.217,23.195,20.0]
[1673892913115,20.0,23.216,23.192,111.4245]
[1673892913326,32.32,23.217,23.192,111.4245]
[1673892913542,20.0,23.216,23.193,20.0]
[1673892913757,32.32,23.217,23.194,20.0]
[1673892913972,32.32,23.217,23.195,20.0]
[1673892914284,32.32,23.217,23.195,132.8963]
[1673892914499,32.32,23.217,23.197,20.0]
[1673892914706,32.32,23.217,23.198,17.0]
[1673892914900,32.32,23.217,23.199,20.0]
[1673892915113,32.32,23.217,23.2,17.0]
[1673892915444,32.32,23.217,23.201,20.0]
[1673892915655,32.32,23.217,23.202,17.0]
[1673892915847,32.32,23.217,23.202,37.0]
[1673892916053,32.32,23.217,23.203,20.0]
[1673892916263,32.32,23.217,23.204,37.0]
[1673892917950,32.32,23.217,23.205,20.0]
[1673892918160,32.32,23.217,23.206,17.0]
[1673892918604,32.32,23.217,23.173,20.0]
[1673892919005,32.32,23.217,23.19,18.13242741]
[1673892919427,20.0,23.216,23.187,20.0]
[1673892920070,20.0,23.216,23.188,18.13242741]
[1673892920284,32.32,23.217,23.189,20.0]
[1673892920895,32.32,23.217,23.199,20.0]
[1673892921107,32.32,23.217,23.2,17.0]
[1673892922578,32.32,23.217,23.202,20.0]
[1673892922910,32.32,23.217,23.203,17.0]
[1673892923326,32.32,23.217,23.204,20.0]
[1673892923519,32.32,23.217,23.189,20.0]
[1673892923730,20.0,23.216,23.195,112.8963]
[1673892924485,20.0,23.214,23.195,112.8963]
[1673892924802,20.0,23.212,23.195,112.8963]
[1673892925201,20.0,23.212,23.196,20.0]
[1673892926166,20.0,23.212,23.195,112.8963]
[1673892926356,17.0,23.211,23.195,112.8963]
[1673892926568,20.0,23.21,23.195,112.8963]
[1673892926782,20.0,23.209,23.195,112.8963]
[1673892927112,20.0,23.208,23.195,112.8963]
[1673892927313,20.0,23.207,23.195,112.8963]
[1673892928984,20.0,23.207,23.189,20.0]
[1673892929201,20.0,23.207,23.193,17.0]
[1673892929411,20.0,23.207,23.194,20.0]
[1673892929947,20.0,23.209,23.194,20.0]
[1673892932397,20.0,23.209,23.195,17.0]
[1673892935006,20.0,23.209,23.193,37.0]
[1673892939852,49.33,23.208,23.185,52.36]
[1673892940068,20.0,23.207,23.185,52.36]
[1673892940283,20.0,23.205,23.185,20.0]
[1673892940888,20.0,23.203,23.185,20.0]
[1673892941638,32.34,23.204,23.185,20.0]
[1673892941961,32.34,23.204,23.189,20.0]
[1673892942151,20.0,23.205,23.189,20.0]
[1673892942364,32.34,23.206,23.189,20.0]
[1673892942572,20.0,23.204,23.189,20.0]
[1673892942778,20.0,23.204,23.186,20.0]
[1673892944473,52.34,23.204,23.186,20.0]
[1673892945097,52.34,23.204,23.185,20.0]
[1673892945312,17.0,23.203,23.183,32.37]
[1673892945529,20.0,23.202,23.184,20.0]
[1673892945839,17.0,23.201,23.184,20.0]
[1673892947200,17.0,23.201,23.184,52.37]
[1673892947404,32.34,23.202,23.185,17.0]
[1673892947613,141.947,23.205,23.185,17.0]
[1673892947845,109.607,23.205,23.187,20.0]
[1673892948157,109.607,23.205,23.189,20.0]
[1673892948370,109.607,23.205,23.19,17.0]
[1673892950463,32.33,23.212,23.191,18.13242741]
[1673892950672,16.95,23.22,23.192,37.0]
[1673892950673,32.33,23.213,23.192,37.0]
[1673892950878,32.33,23.213,23.192,148.4858]
[1673892951097,20.0,23.212,23.193,20.0]
[1673892951304,20.0,23.212,23.195,20.0]
[1673892951636,20.0,23.212,23.196,17.0]
[1673892953836,32.33,23.213,23.196,17.0]
[1673892954155,113.8033,23.219,23.198,20.0]
[1673892954156,32.32,23.217,23.198,20.0]
[1673892954344,32.32,23.217,23.199,17.0]
[1673892954554,20.0,23.216,23.199,17.0]
[1673892955517,20.0,23.216,23.196,32.35]
[1673892955713,32.32,23.215,23.192,111.4858]
[1673892955925,20.0,23.214,23.193,20.0]
[1673892956253,20.0,23.214,23.193,40.0]
[1673892956461,32.33,23.213,23.193,40.0]
[1673892957197,20.0,23.214,23.194,52.35]
[1673892957534,20.0,23.214,23.196,20.0]
[1673892957707,20.0,23.214,23.197,17.0]
[1673892960048,32.32,23.215,23.197,17.0]
[1673892960229,52.32,23.217,23.197,17.0]
[1673892966254,32.32,23.217,23.197,17.0]
[1673892966455,20.0,23.216,23.197,17.0]
[1673892967391,52.32,23.217,23.197,17.0]
[1673892967600,52.32,23.217,23.197,35.13242741]
[1673892967806,20.0,23.217,23.197,35.13242741]
[1673892968015,20.0,23.217,23.198,20.0]
[1673892968235,20.0,23.217,23.199,17.0]
[1673892968450,32.31,23.222,23.199,17.0]
[1673892968766,32.32,23.219,23.201,20.0]
[1673892968981,32.31,23.221,23.202,37.0]
[1673892969172,52.31,23.223,23.203,20.0]
[1673892969383,32.32,23.22,23.204,37.0]
[1673892969600,32.31,23.222,23.205,20.0]
[1673892969795,32.31,23.222,23.206,17.0]
[1673892970452,20.0,23.221,23.205,113.7365]
[1673892970847,20.0,23.219,23.205,113.7365]
[1673892972547,20.0,23.221,23.205,113.7365]
[1673892977307,20.0,23.219,23.205,113.7365]
[1673892978628,20.0,23.219,23.2,117.1681]
[1673892978852,20.0,23.217,23.2,117.1681]
[1673892979061,17.0,23.216,23.2,117.1681]
[1673892979275,20.0,23.215,23.2,117.1681]
[1673892980745,20.0,23.213,23.2,117.1681]
[1673892988010,20.0,23.215,23.2,117.1681]
[1673892988199,32.31,23.222,23.2,117.1681]
[1673892988417,52.31,23.223,23.201,87.47242741]
[1673892988642,20.0,23.223,23.202,20.0]
[1673892988836,20.0,23.223,23.203,37.0]
[1673892989047,12.66,23.22,23.204,20.0]
[1673892989367,20.0,23.219,23.205,17.0]
[1673892990305,20.0,23.218,23.204,17.0]
[1673892990527,20.0,23.217,23.204,17.0]
[1673892990737,20.0,23.217,23.203,17.0]
[1673892991350,12.66,23.22,23.203,17.0]
[1673892991579,12.66,23.22,23.205,20.0]
[1673892991770,12.66,23.22,23.206,17.0]
[1673892992642,12.66,23.22,23.204,17.0]
[1673892992830,12.66,23.22,23.175,28.13949899]
[1673892992831,17.0,23.219,23.196,32.35]
[1673892993047,20.0,23.217,23.201,17.0]
[1673892993490,20.0,23.217,23.196,32.35]
[1673892995482,20.0,23.217,23.197,20.0]
[1673892995881,20.0,23.217,23.198,32.35]
[1673892996844,17.0,23.216,23.198,32.35]
[1673892997062,20.0,23.215,23.196,32.35]
[1673893001974,20.0,23.218,23.196,32.35]
[1673893002184,20.0,23.218,23.201,17.0]
[1673893003133,20.0,23.217,23.201,17.0]
[1673893003363,20.0,23.216,23.201,17.0]
[1673893005252,20.0,23.217,23.201,17.0]
[1673893005675,20.0,23.217,23.196,32.35]
[1673893005895,20.0,23.215,23.196,32.35]
[1673893006195,20.0,23.215,23.194,20.0]
[1673893006399,20.0,23.215,23.195,32.35]
[1673893006614,20.0,23.217,23.196,20.0]
[1673893006816,20.0,23.218,23.196,38.70649646]
[1673893007033,20.0,23.218,23.197,32.35]
[1673893007360,20.0,23.217,23.198,37.0]
[1673893007765,20.0,23.217,23.199,32.35]
[1673893007969,20.0,23.217,23.2,17.0]
[1673893008706,20.0,23.217,23.195,32.35]
[1673893009037,20.0,23.215,23.194,32.35]
[1673893009247,17.0,23.214,23.194,32.35]
[1673893009461,20.0,23.213,23.194,32.35]
[1673893009646,20.0,23.213,23.195,20.0]
[1673893009859,20.0,23.213,23.196,17.0]
[1673893012486,20.0,23.215,23.196,17.0]
[1673893012704,20.0,23.217,23.197,32.35]
[1673893013035,136.638,23.218,23.198,37.0]
[1673893013558,136.638,23.218,23.2,20.0]
[1673893013744,136.638,23.218,23.201,17.0]
[1673893013950,20.0,23.218,23.201,17.0]
[1673893014607,20.0,23.218,23.202,20.0]
[1673893014939,20.0,23.219,23.203,17.0]
[1673893017461,20.0,23.218,23.199,51.05649646]
[1673893017654,20.0,23.217,23.199,18.70649646]
[1673893017869,20.0,23.216,23.196,32.35]
[1673893018194,20.0,23.216,23.197,18.70649646]
[1673893018911,20.0,23.216,23.198,17.0]
[1673893019776,20.0,23.216,23.199,20.0]
[1673893019980,20.0,23.216,23.2,17.0]
[1673893020499,52.32,23.217,23.199,17.0]
[1673893020717,52.32,23.217,23.2,20.0]
[1673893020923,20.0,23.217,23.201,17.0]
[1673893021960,20.0,23.219,23.201,17.0]
[1673893022387,20.0,23.218,23.201,17.0]
[1673893022712,20.0,23.217,23.201,17.0]
[1673893022908,32.31,23.224,23.202,71.04649646]
[1673893023120,52.31,23.225,23.203,17.0]
[1673893023454,52.31,23.225,23.204,40.0]
[1673893023764,20.0,23.225,23.205,17.0]
[1673893023978,20.0,23.225,23.206,20.0]
[1673893024193,32.31,23.226,23.207,17.0]
[1673893024504,52.31,23.227,23.208,20.0]
[1673893024709,52.31,23.227,23.209,17.0]
[1673893026492,52.31,23.227,23.208,17.0]
[1673893029556,52.31,23.227,23.205,114.8251]
[1673893029759,12.61,23.22,23.205,114.8251]
[1673893029970,52.31,23.227,23.205,114.8251]
[1673893030184,12.66,23.22,23.203,108.4985]
[1673893030510,57.0,23.219,23.203,108.4985]
[1673893030816,89.32,23.219,23.203,108.4985]
[1673893031434,89.32,23.219,23.193,32.35]
[1673893031643,109.3661,23.218,23.194,133.6375]
[1673893031866,57.0,23.217,23.194,133.6375]
[1673893032190,89.32,23.217,23.194,133.6375]
[1673893033026,12.66,23.21,23.194,113.6375]
[1673893033221,20.0,23.208,23.188,32.36]
[1673893033429,12.66,23.2,23.185,113.3201]
[1673893034060,12.66,23.2,23.185,132.02659646]
[1673893036185,12.66,23.2,23.186,17.0]
[1673893036806,12.66,23.2,23.185,113.3201]
[1673893037440,52.33,23.208,23.186,18.70649646]
[1673893037654,20.0,23.206,23.187,20.0]
[1673893037871,12.66,23.2,23.186,32.36]
[1673893038069,12.66,23.2,23.185,113.3201]
[1673893038281,12.66,23.2,23.186,17.0]
[1673893039220,12.66,23.2,23.181,32.37]
[1673893039557,12.66,23.2,23.176,20.0]
[1673893039558,20.0,23.198,23.182,20.0]
[1673893040588,20.0,23.198,23.181,20.0]
[1673893040811,20.0,23.198,23.182,20.0]
[1673893041350,12.66,23.2,23.182,20.0]
[1673893041656,12.66,23.2,23.183,32.37]
[1673893041870,12.66,23.2,23.184,37.0]
[1673893042395,12.66,23.2,23.185,18.70649646]
[1673893042715,20.0,23.207,23.186,17.0]
[1673893042929,32.34,23.205,23.187,20.0]
[1673893043111,20.0,23.207,23.188,17.0]
[1673893043764,52.33,23.207,23.188,17.0]
[1673893045638,12.66,23.2,23.181,20.0]
[1673893045855,17.0,23.199,23.18,20.0]
[1673893046167,20.0,23.198,23.18,20.0]
[1673893046380,20.0,23.198,23.179,109.945]
[1673893046589,69.35,23.197,23.175,32.38]
[1673893046800,12.66,23.19,23.174,18.70649646]
[1673893047956,12.66,23.19,23.17,32.39]
[1673893048372,12.66,23.19,23.172,20.0]
[1673893049346,20.0,23.188,23.172,20.0]
[1673893049862,20.0,23.188,23.173,20.0]
[1673893050275,20.0,23.188,23.172,20.0]
[1673893051109,20.0,23.188,23.17,32.39]
[1673893051310,20.0,23.186,23.171,17.0]
[1673893051743,20.0,23.186,23.17,17.0]
[1673893052809,20.0,23.186,23.17,37.0]
[1673893053123,20.0,23.187,23.171,20.0]
[1673893053312,20.0,23.187,23.172,17.0]
[1673893054169,20.0,23.187,23.171,17.0]
[1673893055865,20.0,23.186,23.171,17.0]
[1673893056589,20.0,23.186,23.17,17.0]
[1673893056989,20.0,23.187,23.171,20.0]
[1673893057202,20.0,23.187,23.172,17.0]
[1673893057847,20.0,23.188,23.172,17.0]
[1673893058899,12.66,23.2,23.172,35.70649646]
[1673893059108,127.0619,23.21,23.18,12.66]
[1673893059318,127.0619,23.21,23.181,37.0]
[1673893059528,32.33,23.207,23.181,161.9222518]
[1673893059744,32.33,23.207,23.182,112.5522518]